[Event "Late-Titled-Tuesday-Blitz-May-28-2024"]
[Site "Chess.com"]
[Date "2024.05.28"]
[Round "2"]
[White "terrortoast"]
[Black "wild3000"]
[Result "1-0"]
[WhiteElo "2627"]
[BlackElo "2389"]
[TimeControl "180+1"]
[EndTime "14:17:32 PDT"]
[Termination "terrortoast won on time"]

1. d4 {[%clk 0:03:00]} 1... d5 {[%clk 0:03:00.1]} 2. Nc3 {[%clk 0:02:59.3]} 2...
e6 {[%clk 0:03:00.4]} 3. Bf4 {[%clk 0:02:59.3]} 3... Bb4 {[%clk 0:02:56]} 4. Qd3
{[%clk 0:02:58.5]} 4... a6 {[%clk 0:02:50]} 5. g4 {[%clk 0:02:54.1]} 5... Nf6
{[%clk 0:02:43.5]} 6. Bg2 {[%clk 0:02:37.6]} 6... c5 {[%clk 0:02:25.1]} 7. dxc5
{[%clk 0:02:24.7]} 7... Bxc5 {[%clk 0:02:24.9]} 8. Qg3 {[%clk 0:02:24.6]} 8...
Nc6 {[%clk 0:02:14.2]} 9. O-O-O {[%clk 0:02:19.5]} 9... O-O {[%clk 0:02:02.7]}
10. Nf3 {[%clk 0:02:01.2]} 10... Re8 {[%clk 0:01:48.7]} 11. Ne5 {[%clk
0:01:58.3]} 11... Nxe5 {[%clk 0:01:44.4]} 12. Bxe5 {[%clk 0:01:59.2]} 12... Nd7
{[%clk 0:01:37]} 13. Bc7 {[%clk 0:01:38.4]} 13... Qf6 {[%clk 0:01:30.8]} 14. e3
{[%clk 0:01:37.7]} 14... b5 {[%clk 0:01:23.3]} 15. g5 {[%clk 0:01:33.5]} 15...
Qg6 {[%clk 0:01:20.4]} 16. h4 {[%clk 0:01:32.7]} 16... h5 {[%clk 0:01:06.5]} 17.
Ne2 {[%clk 0:01:17]} 17... Bb7 {[%clk 0:00:51.3]} 18. Nf4 {[%clk 0:01:16.8]}
18... Qf5 {[%clk 0:00:47.2]} 19. e4 {[%clk 0:01:14.1]} 19... dxe4 {[%clk
0:00:23.7]} 20. Bh3 {[%clk 0:01:07.9]} 20... Qh7 {[%clk 0:00:20.9]} 21. g6
{[%clk 0:01:07.7]} 21... fxg6 {[%clk 0:00:20.8]} 22. Rxd7 {[%clk 0:01:07.7]}
22... Bc6 {[%clk 0:00:20.8]} 23. Rdd1 {[%clk 0:01:02]} 23... Rac8 {[%clk
0:00:20.2]} 24. Be5 {[%clk 0:01:01.3]} 24... Bd5 {[%clk 0:00:15.2]} 25. Nxd5
{[%clk 0:00:58.9]} 25... exd5 {[%clk 0:00:15.2]} 26. Bxc8 {[%clk 0:00:59.6]}
26... Rxc8 {[%clk 0:00:15.2]} 27. Rxd5 {[%clk 0:00:56.6]} 27... Kh8 {[%clk
0:00:11.4]} 28. Rhd1 {[%clk 0:00:55.4]} 28... Qg8 {[%clk 0:00:10.7]} 29. Qxg6
{[%clk 0:00:53.2]} 29... Qh7 {[%clk 0:00:07.1]} 30. Rd8+ {[%clk 0:00:52.7]} 1-0

[Event "Late-Titled-Tuesday-Blitz-May-28-2024"]
[Site "Chess.com"]
[Date "2024.05.28"]
[Round "2"]
[White "FlemingA"]
[Black "MrEscacs"]
[Result "1-0"]
[WhiteElo "2479"]
[BlackElo "2175"]
[TimeControl "180+1"]
[EndTime "14:17:34 PDT"]
[Termination "FlemingA won by resignation"]

1. f4 {[%clk 0:03:00.9]} 1... Nf6 {[%clk 0:02:58.9]} 2. Nf3 {[%clk 0:02:56.7]}
2... g6 {[%clk 0:02:59.1]} 3. g3 {[%clk 0:02:56.7]} 3... Bg7 {[%clk 0:02:59.5]}
4. Bg2 {[%clk 0:02:57.4]} 4... d6 {[%clk 0:03:00.1]} 5. O-O {[%clk 0:02:58.3]}
5... O-O {[%clk 0:03:00.4]} 6. d3 {[%clk 0:02:58.9]} 6... c5 {[%clk 0:03:00.8]}
7. e4 {[%clk 0:02:59.3]} 7... Nc6 {[%clk 0:03:01.2]} 8. Nc3 {[%clk 0:02:59.6]}
8... Bg4 {[%clk 0:03:00.4]} 9. h3 {[%clk 0:02:59.4]} 9... Bxf3 {[%clk
0:03:00.8]} 10. Qxf3 {[%clk 0:03:00.3]} 10... a6 {[%clk 0:02:58.4]} 11. Be3
{[%clk 0:03:00]} 11... Qd7 {[%clk 0:02:53.3]} 12. Rad1 {[%clk 0:02:54.9]} 12...
Rfc8 {[%clk 0:02:53.3]} 13. Ne2 {[%clk 0:02:31.8]} 13... Rab8 {[%clk 0:02:52.2]}
14. c3 {[%clk 0:02:29.9]} 14... b5 {[%clk 0:02:52.1]} 15. d4 {[%clk 0:02:30.4]}
15... cxd4 {[%clk 0:02:42.7]} 16. Nxd4 {[%clk 0:02:28.6]} 16... Nxd4 {[%clk
0:02:37.9]} 17. Bxd4 {[%clk 0:02:27.3]} 17... Qc7 {[%clk 0:02:25.5]} 18. e5
{[%clk 0:02:05.2]} 18... Ne8 {[%clk 0:02:16.5]} 19. Kh2 {[%clk 0:01:37.6]} 19...
b4 {[%clk 0:02:05.6]} 20. Rc1 {[%clk 0:01:31.7]} 20... Qa5 {[%clk 0:01:42.5]}
21. f5 {[%clk 0:01:22.8]} 21... dxe5 {[%clk 0:01:18.1]} 22. fxg6 {[%clk
0:01:21.9]} 22... fxg6 {[%clk 0:01:10.3]} 23. Qf7+ {[%clk 0:00:54.8]} 23... Kh8
{[%clk 0:01:10.4]} 24. Qxe7 {[%clk 0:00:55.3]} 24... Nc7 {[%clk 0:00:27.1]} 25.
Rf7 {[%clk 0:00:23.2]} 25... Nd5 {[%clk 0:00:20]} 26. Bxd5 {[%clk 0:00:22.9]}
26... exd4 {[%clk 0:00:11.5]} 27. Rxg7 {[%clk 0:00:22.5]} 1-0

[Event "Late-Titled-Tuesday-Blitz-May-28-2024"]
[Site "Chess.com"]
[Date "2024.05.28"]
[Round "2"]
[White "Yaacovn"]
[Black "TokChess"]
[Result "1-0"]
[WhiteElo "2866"]
[BlackElo "2526"]
[TimeControl "180+1"]
[EndTime "14:17:35 PDT"]
[Termination "Yaacovn won by resignation"]

1. d4 {[%clk 0:02:46.6]} 1... d5 {[%clk 0:02:58.5]} 2. e3 {[%clk 0:02:47]} 2...
c5 {[%clk 0:02:52.8]} 3. c3 {[%clk 0:02:47]} 3... cxd4 {[%clk 0:02:50.6]} 4.
exd4 {[%clk 0:02:46.6]} 4... Nc6 {[%clk 0:02:51.2]} 5. Bd3 {[%clk 0:02:46.9]}
5... Nf6 {[%clk 0:02:51]} 6. Bf4 {[%clk 0:02:47.4]} 6... Bg4 {[%clk 0:02:48.8]}
7. Qb3 {[%clk 0:02:47.3]} 7... Qc8 {[%clk 0:02:32.3]} 8. Nd2 {[%clk 0:02:44.5]}
8... e6 {[%clk 0:02:30.3]} 9. Ngf3 {[%clk 0:02:44.6]} 9... Be7 {[%clk
0:02:27.6]} 10. Ne5 {[%clk 0:02:44.7]} 10... Bh5 {[%clk 0:02:24.4]} 11. O-O
{[%clk 0:02:43.8]} 11... O-O {[%clk 0:02:23.7]} 12. Rfe1 {[%clk 0:02:36.3]}
12... Bg6 {[%clk 0:02:23.6]} 13. Nxg6 {[%clk 0:02:30.9]} 13... hxg6 {[%clk
0:02:24.5]} 14. Nf3 {[%clk 0:02:31.2]} 14... Na5 {[%clk 0:02:04]} 15. Qd1 {[%clk
0:02:29.5]} 15... Nc4 {[%clk 0:02:02.3]} 16. Qe2 {[%clk 0:02:29.4]} 16... Bd6
{[%clk 0:01:58.9]} 17. Bg5 {[%clk 0:02:28.3]} 17... Qc7 {[%clk 0:01:54.9]} 18.
h4 {[%clk 0:02:26.2]} 18... Nh7 {[%clk 0:01:44.9]} 19. g3 {[%clk 0:02:19.2]}
19... Rfe8 {[%clk 0:01:35.7]} 20. Kg2 {[%clk 0:02:16.7]} 20... a6 {[%clk
0:01:12.2]} 21. Rh1 {[%clk 0:02:12.4]} 21... e5 {[%clk 0:01:08.8]} 22. dxe5
{[%clk 0:02:11.6]} 22... Nxe5 {[%clk 0:01:01.7]} 23. Nxe5 {[%clk 0:02:11.2]}
23... Rxe5 {[%clk 0:01:00.8]} 24. Qd2 {[%clk 0:02:11.1]} 24... Nxg5 {[%clk
0:00:57.3]} 25. hxg5 {[%clk 0:02:11]} 25... Qe7 {[%clk 0:00:49.8]} 26. f4 {[%clk
0:02:07.6]} 26... Re3 {[%clk 0:00:49.2]} 27. Rh4 {[%clk 0:02:04]} 27... Re8
{[%clk 0:00:30.9]} 28. Rah1 {[%clk 0:02:02.5]} 28... f5 {[%clk 0:00:29.6]} 29.
gxf6 {[%clk 0:01:57.7]} 29... Qxf6 {[%clk 0:00:28.9]} 30. Rh8+ {[%clk 0:01:55]}
30... Kf7 {[%clk 0:00:29]} 31. Rxe8 {[%clk 0:01:55.2]} 31... Rxe8 {[%clk
0:00:28.1]} 32. Be2 {[%clk 0:01:53.9]} 32... d4 {[%clk 0:00:27.4]} 33. Bc4+
{[%clk 0:01:52.5]} 33... Ke7 {[%clk 0:00:25.5]} 34. Re1+ {[%clk 0:01:52.6]}
34... Kd7 {[%clk 0:00:25]} 35. Rxe8 {[%clk 0:01:52.3]} 35... Kxe8 {[%clk
0:00:25.9]} 36. cxd4 {[%clk 0:01:52.5]} 36... Qf5 {[%clk 0:00:19.4]} 37. Qe3+
{[%clk 0:01:50.6]} 37... Kd7 {[%clk 0:00:18.8]} 38. Bd3 {[%clk 0:01:50.5]} 38...
Qd5+ {[%clk 0:00:18.3]} 39. Qe4 {[%clk 0:01:49.9]} 39... Qxa2 {[%clk 0:00:12.4]}
40. Qxb7+ {[%clk 0:01:48.4]} 40... Bc7 {[%clk 0:00:12.5]} 41. Bxg6 {[%clk
0:01:46.3]} 41... Qe6 {[%clk 0:00:04.2]} 42. Qe4 {[%clk 0:01:45.7]} 42... Qxe4+
{[%clk 0:00:01.8]} 43. Bxe4 {[%clk 0:01:46.6]} 43... Kd6 {[%clk 0:00:01.8]} 44.
Kf3 {[%clk 0:01:46.2]} 44... Bd8 {[%clk 0:00:02.2]} 45. g4 {[%clk 0:01:44.6]}
45... g5 {[%clk 0:00:02]} 46. f5 {[%clk 0:01:44]} 46... Bf6 {[%clk 0:00:01.9]}
47. Ke3 {[%clk 0:01:44.2]} 47... a5 {[%clk 0:00:02.5]} 48. b3 {[%clk 0:01:44.3]}
48... Kc7 {[%clk 0:00:02.9]} 49. Kd3 {[%clk 0:01:44.1]} 49... Kb6 {[%clk
0:00:03.4]} 50. Kc4 {[%clk 0:01:44.7]} 50... Bg7 {[%clk 0:00:03.6]} 51. Kd5
{[%clk 0:01:43.5]} 51... Bf6 {[%clk 0:00:03.9]} 52. Ke6 {[%clk 0:01:42.2]} 52...
Bxd4 {[%clk 0:00:04.2]} 53. f6 {[%clk 0:01:42.5]} 53... Bxf6 {[%clk 0:00:03.1]}
1-0

[Event "Late-Titled-Tuesday-Blitz-May-28-2024"]
[Site "Chess.com"]
[Date "2024.05.28"]
[Round "2"]
[White "King_Deded4d5"]
[Black "Synctel"]
[Result "1-0"]
[WhiteElo "2455"]
[BlackElo "2063"]
[TimeControl "180+1"]
[EndTime "14:17:37 PDT"]
[Termination "King_Deded4d5 won on time"]

1. d4 {[%clk 0:03:00.9]} 1... Nf6 {[%clk 0:02:59.3]} 2. Nf3 {[%clk 0:03:00.1]}
2... d5 {[%clk 0:02:57.7]} 3. Bf4 {[%clk 0:02:57.9]} 3... e6 {[%clk 0:02:57.9]}
4. Nbd2 {[%clk 0:02:56.6]} 4... Bd6 {[%clk 0:02:57.6]} 5. e3 {[%clk 0:02:56.6]}
5... O-O {[%clk 0:02:53.8]} 6. Bd3 {[%clk 0:02:56.2]} 6... b6 {[%clk 0:02:54.4]}
7. Ne5 {[%clk 0:02:51.5]} 7... Bb7 {[%clk 0:02:39.2]} 8. Qf3 {[%clk 0:02:45.6]}
8... c5 {[%clk 0:02:32.6]} 9. h4 {[%clk 0:02:44.1]} 9... c4 {[%clk 0:01:56.6]}
10. Bxc4 {[%clk 0:02:43.4]} 10... Ne4 {[%clk 0:01:46.5]} 11. Bd3 {[%clk
0:02:31.1]} 11... f6 {[%clk 0:00:58.8]} 12. Ng4 {[%clk 0:02:28.2]} 12... Bxf4
{[%clk 0:00:41.6]} 13. exf4 {[%clk 0:02:16.5]} 13... Nxd2 {[%clk 0:00:31]} 14.
Kxd2 {[%clk 0:02:17.4]} 14... Nd7 {[%clk 0:00:20]} 15. Rae1 {[%clk 0:02:05.2]}
15... e5 {[%clk 0:00:18.6]} 16. dxe5 {[%clk 0:02:02.6]} 16... fxe5 {[%clk
0:00:18.6]} 17. Nxe5 {[%clk 0:02:03.5]} 17... Nxe5 {[%clk 0:00:14.5]} 18. Rxe5
{[%clk 0:02:02.8]} 18... Qd6 {[%clk 0:00:12.2]} 19. Rhe1 {[%clk 0:01:56.1]}
19... Qb4+ {[%clk 0:00:11.9]} 20. Kc1 {[%clk 0:01:55.9]} 20... Qxf4+ {[%clk
0:00:02.8]} 21. Qxf4 {[%clk 0:01:55.5]} 21... Rxf4 {[%clk 0:00:03.7]} 22. Re7
{[%clk 0:01:40.2]} 22... Rf7 {[%clk 0:00:03.5]} 23. Bxh7+ {[%clk 0:01:33.6]}
23... Kf8 {[%clk 0:00:02.6]} 24. Rxf7+ {[%clk 0:01:32.5]} 24... Kxf7 {[%clk
0:00:03.5]} 25. h5 {[%clk 0:01:31.6]} 25... Kf6 {[%clk 0:00:02.3]} 26. c3 {[%clk
0:01:30.3]} 26... d4 {[%clk 0:00:03]} 27. g4 {[%clk 0:01:20]} 27... dxc3 {[%clk
0:00:03.2]} 28. f4 {[%clk 0:01:15.4]} 28... cxb2+ {[%clk 0:00:02.4]} 29. Kxb2
{[%clk 0:01:16.3]} 29... Rd8 {[%clk 0:00:02]} 30. g5+ {[%clk 0:01:16.1]} 30...
Kf7 {[%clk 0:00:01.5]} 31. Bg6+ {[%clk 0:01:14.2]} 31... Kf8 {[%clk 0:00:01.8]}
32. f5 {[%clk 0:01:05]} 32... Bc6 {[%clk 0:00:02.1]} 33. h6 {[%clk 0:01:01.9]}
33... gxh6 {[%clk 0:00:01.7]} 34. gxh6 {[%clk 0:01:02.8]} 34... Kg8 {[%clk
0:00:01.3]} 35. Re6 {[%clk 0:00:59.6]} 35... Bd5 {[%clk 0:00:01.1]} 36. Re7
{[%clk 0:00:58.9]} 1-0

[Event "Late-Titled-Tuesday-Blitz-May-28-2024"]
[Site "Chess.com"]
[Date "2024.05.28"]
[Round "2"]
[White "SharathRk6"]
[Black "nitpicker"]
[Result "1-0"]
[WhiteElo "2539"]
[BlackElo "2335"]
[TimeControl "180+1"]
[EndTime "14:17:41 PDT"]
[Termination "SharathRk6 won on time"]

1. e4 {[%clk 0:03:00.9]} 1... c5 {[%clk 0:02:59.3]} 2. Nf3 {[%clk 0:03:00.6]}
2... Nc6 {[%clk 0:02:59.4]} 3. Bb5 {[%clk 0:03:00.2]} 3... Nf6 {[%clk
0:02:57.7]} 4. d3 {[%clk 0:02:57.6]} 4... g6 {[%clk 0:02:56.7]} 5. Nc3 {[%clk
0:02:56.5]} 5... Bg7 {[%clk 0:02:56.4]} 6. O-O {[%clk 0:02:56.7]} 6... O-O
{[%clk 0:02:54.8]} 7. Bxc6 {[%clk 0:02:56.6]} 7... dxc6 {[%clk 0:02:54.4]} 8.
Ne2 {[%clk 0:02:57.2]} 8... Nd7 {[%clk 0:02:47.4]} 9. Nd2 {[%clk 0:02:56.5]}
9... e5 {[%clk 0:02:45.3]} 10. a4 {[%clk 0:02:54.2]} 10... b6 {[%clk 0:02:36.5]}
11. Nc4 {[%clk 0:02:52.5]} 11... Qc7 {[%clk 0:02:23.4]} 12. f4 {[%clk
0:02:47.5]} 12... exf4 {[%clk 0:02:21.6]} 13. Bxf4 {[%clk 0:02:45.2]} 13... Ne5
{[%clk 0:02:21.6]} 14. Nc3 {[%clk 0:02:39.8]} 14... Qe7 {[%clk 0:02:17.8]} 15.
Nxe5 {[%clk 0:02:29.7]} 15... Bxe5 {[%clk 0:02:16.9]} 16. Qf3 {[%clk 0:02:28.4]}
16... Bd4+ {[%clk 0:02:10.3]} 17. Be3 {[%clk 0:02:23.9]} 17... Bg7 {[%clk
0:02:05.7]} 18. a5 {[%clk 0:02:17.2]} 18... b5 {[%clk 0:01:54.8]} 19. Qf2 {[%clk
0:02:12.1]} 19... Bd4 {[%clk 0:01:20.2]} 20. Bxd4 {[%clk 0:02:07.4]} 20... cxd4
{[%clk 0:01:21.1]} 21. Qxd4 {[%clk 0:02:07.2]} 21... Be6 {[%clk 0:01:18]} 22.
Rae1 {[%clk 0:01:59.4]} 22... Rfd8 {[%clk 0:01:11]} 23. Qe5 {[%clk 0:01:56.9]}
23... Qd6 {[%clk 0:00:59.6]} 24. Qxd6 {[%clk 0:01:45.4]} 24... Rxd6 {[%clk
0:01:00.5]} 25. e5 {[%clk 0:01:45.8]} 25... Rd4 {[%clk 0:00:57.9]} 26. Ne4
{[%clk 0:01:39.1]} 26... Ra4 {[%clk 0:00:41.8]} 27. Ra1 {[%clk 0:01:35.4]} 27...
Rxa1 {[%clk 0:00:41.6]} 28. Rxa1 {[%clk 0:01:34.3]} 28... Rd8 {[%clk 0:00:37.4]}
29. a6 {[%clk 0:01:30]} 29... Kg7 {[%clk 0:00:33.3]} 30. Nd6 {[%clk 0:01:28]}
30... f6 {[%clk 0:00:31.1]} 31. d4 {[%clk 0:01:26.3]} 31... fxe5 {[%clk
0:00:20.3]} 32. dxe5 {[%clk 0:01:25]} 32... Rd7 {[%clk 0:00:20.7]} 33. Rf1
{[%clk 0:01:20.7]} 33... Re7 {[%clk 0:00:19.4]} 34. Re1 {[%clk 0:01:19]} 34...
Bd5 {[%clk 0:00:18.8]} 35. g3 {[%clk 0:01:12]} 35... Bf3 {[%clk 0:00:14.7]} 36.
Kf2 {[%clk 0:01:12]} 36... Bd5 {[%clk 0:00:14.8]} 37. b3 {[%clk 0:01:07.6]}
37... Kf8 {[%clk 0:00:13.1]} 38. Re3 {[%clk 0:01:05.9]} 38... Re6 {[%clk
0:00:10.1]} 39. Ke2 {[%clk 0:01:04.1]} 39... Ke7 {[%clk 0:00:07.6]} 40. Kd3
{[%clk 0:01:04.3]} 40... Kd7 {[%clk 0:00:07.5]} 41. Kd4 {[%clk 0:01:04.4]} 41...
Kc7 {[%clk 0:00:06.1]} 42. Kc5 {[%clk 0:01:04.7]} 42... Bg2 {[%clk 0:00:03.8]}
43. Re2 {[%clk 0:01:03.7]} 43... Bf3 {[%clk 0:00:03.5]} 44. Re3 {[%clk
0:01:03.7]} 44... Rxe5+ {[%clk 0:00:02.2]} 45. Rxe5 {[%clk 0:01:02.7]} 1-0

[Event "Late-Titled-Tuesday-Blitz-May-28-2024"]
[Site "Chess.com"]
[Date "2024.05.28"]
[Round "2"]
[White "SoCalJuniorChess"]
[Black "SaiHanThiha"]
[Result "0-1"]
[WhiteElo "2235"]
[BlackElo "2506"]
[TimeControl "180+1"]
[EndTime "14:17:41 PDT"]
[Termination "SaiHanThiha won by checkmate"]

1. d4 {[%clk 0:03:00.9]} 1... Nf6 {[%clk 0:02:59.6]} 2. Nc3 {[%clk 0:02:56.3]}
2... d5 {[%clk 0:02:58.7]} 3. Bf4 {[%clk 0:02:56.8]} 3... a6 {[%clk 0:02:53.2]}
4. Nf3 {[%clk 0:02:55.3]} 4... c5 {[%clk 0:02:51.6]} 5. dxc5 {[%clk 0:02:54.5]}
5... e6 {[%clk 0:02:47.8]} 6. b4 {[%clk 0:02:53.9]} 6... b6 {[%clk 0:02:22.5]}
7. cxb6 {[%clk 0:02:43.5]} 7... Bxb4 {[%clk 0:02:17.4]} 8. Be5 {[%clk
0:02:27.7]} 8... Nc6 {[%clk 0:02:15]} 9. Rb1 {[%clk 0:01:56.4]} 9... Ba5 {[%clk
0:01:05.1]} 10. Rb3 {[%clk 0:01:55.8]} 10... Nxe5 {[%clk 0:00:57]} 11. Nxe5
{[%clk 0:01:55.1]} 11... Ne4 {[%clk 0:00:57.7]} 12. Qd3 {[%clk 0:01:45.6]} 12...
Nxc3 {[%clk 0:00:55.1]} 13. Rxc3 {[%clk 0:01:45.1]} 13... d4 {[%clk 0:00:54.9]}
14. Qf3 {[%clk 0:01:34.6]} 14... O-O {[%clk 0:00:40.3]} 15. Qxa8 {[%clk
0:01:31.7]} 15... Qxb6 {[%clk 0:00:40.8]} 16. e3 {[%clk 0:00:46.9]} 16... Bxc3+
{[%clk 0:00:36.1]} 17. Ke2 {[%clk 0:00:47]} 17... a5 {[%clk 0:00:28.7]} 18. Qf3
{[%clk 0:00:18.7]} 18... Qb1 {[%clk 0:00:25.4]} 19. Qe4 {[%clk 0:00:12.4]} 19...
f5 {[%clk 0:00:17.8]} 20. Qf4 {[%clk 0:00:07.3]} 20... Bb7 {[%clk 0:00:15.5]}
21. Nd3 {[%clk 0:00:03.9]} 21... Qxc2# {[%clk 0:00:15.4]} 0-1

[Event "Late-Titled-Tuesday-Blitz-May-28-2024"]
[Site "Chess.com"]
[Date "2024.05.28"]
[Round "2"]
[White "Kostukov_Alex"]
[Black "RuperezA"]
[Result "0-1"]
[WhiteElo "2377"]
[BlackElo "2701"]
[TimeControl "180+1"]
[EndTime "14:17:42 PDT"]
[Termination "RuperezA won on time"]

1. g3 {[%clk 0:02:59]} 1... e5 {[%clk 0:02:58]} 2. Bg2 {[%clk 0:02:59.9]} 2...
d5 {[%clk 0:02:57.7]} 3. c4 {[%clk 0:03:00.3]} 3... d4 {[%clk 0:02:55]} 4. d3
{[%clk 0:02:59.8]} 4... h5 {[%clk 0:02:51.6]} 5. Nf3 {[%clk 0:02:57.2]} 5... Nc6
{[%clk 0:02:45.9]} 6. O-O {[%clk 0:02:54.6]} 6... Bg4 {[%clk 0:02:45]} 7. b4
{[%clk 0:02:13.9]} 7... Bxb4 {[%clk 0:02:24.5]} 8. Nxe5 {[%clk 0:02:09.3]} 8...
Nxe5 {[%clk 0:02:25.4]} 9. Qa4+ {[%clk 0:02:07.6]} 9... Nc6 {[%clk 0:02:12]} 10.
Bxc6+ {[%clk 0:02:04.9]} 10... bxc6 {[%clk 0:02:12.9]} 11. Qxb4 {[%clk
0:02:04.4]} 11... h4 {[%clk 0:02:04.4]} 12. f3 {[%clk 0:01:34.2]} 12... Bh3
{[%clk 0:01:53.1]} 13. Re1 {[%clk 0:01:28.2]} 13... hxg3 {[%clk 0:01:43.8]} 14.
hxg3 {[%clk 0:01:29.1]} 14... Nf6 {[%clk 0:01:29.1]} 15. Kf2 {[%clk 0:01:18.3]}
15... Rb8 {[%clk 0:01:11.6]} 16. Qc5 {[%clk 0:01:12.8]} 16... Rh5 {[%clk
0:01:11.1]} 17. Qxa7 {[%clk 0:00:40.4]} 17... Be6 {[%clk 0:00:55.8]} 18. Rg1
{[%clk 0:00:29.3]} 18... Ra8 {[%clk 0:00:43]} 19. Qb7 {[%clk 0:00:26.1]} 19...
Bd7 {[%clk 0:00:43.1]} 20. Bf4 {[%clk 0:00:17.8]} 20... Rc8 {[%clk 0:00:36.5]}
21. Qb4 {[%clk 0:00:09]} 21... c5 {[%clk 0:00:34.3]} 22. Qe1 {[%clk 0:00:07.4]}
22... Qe7 {[%clk 0:00:34.5]} 23. g4 {[%clk 0:00:06.5]} 23... Rh8 {[%clk
0:00:29.2]} 24. Nd2 {[%clk 0:00:06.2]} 24... Bc6 {[%clk 0:00:28.1]} 25. Rh1
{[%clk 0:00:02.3]} 25... Nxg4+ {[%clk 0:00:27.5]} 26. fxg4 {[%clk 0:00:01]}
26... Rxh1 {[%clk 0:00:26.8]} 0-1

[Event "Late-Titled-Tuesday-Blitz-May-28-2024"]
[Site "Chess.com"]
[Date "2024.05.28"]
[Round "2"]
[White "AldokhinIvan"]
[Black "Konavets"]
[Result "0-1"]
[WhiteElo "2628"]
[BlackElo "3084"]
[TimeControl "180+1"]
[EndTime "14:17:45 PDT"]
[Termination "Konavets won on time"]

1. e4 {[%clk 0:03:00.9]} 1... e5 {[%clk 0:02:54]} 2. Nf3 {[%clk 0:03:01.1]} 2...
Nc6 {[%clk 0:02:54.2]} 3. Bb5 {[%clk 0:03:01.4]} 3... a6 {[%clk 0:02:53.3]} 4.
Ba4 {[%clk 0:03:01.3]} 4... Nge7 {[%clk 0:02:54]} 5. Nc3 {[%clk 0:03:00.6]} 5...
Ng6 {[%clk 0:02:54.4]} 6. d4 {[%clk 0:02:51.1]} 6... exd4 {[%clk 0:02:55.3]} 7.
Nxd4 {[%clk 0:02:51.5]} 7... Bb4 {[%clk 0:02:55.7]} 8. O-O {[%clk 0:02:45]} 8...
Bxc3 {[%clk 0:02:56]} 9. bxc3 {[%clk 0:02:44.9]} 9... O-O {[%clk 0:02:56.9]} 10.
f4 {[%clk 0:02:41.3]} 10... f6 {[%clk 0:02:47.2]} 11. Bb3+ {[%clk 0:02:36.8]}
11... Kh8 {[%clk 0:02:47.6]} 12. Qh5 {[%clk 0:02:32.6]} 12... Qe8 {[%clk
0:02:45.4]} 13. Rf3 {[%clk 0:02:27.6]} 13... h6 {[%clk 0:02:45.6]} 14. Nf5
{[%clk 0:02:05.1]} 14... Nge5 {[%clk 0:02:42.4]} 15. Rh3 {[%clk 0:01:52.7]}
15... Qxh5 {[%clk 0:02:42]} 16. Rxh5 {[%clk 0:01:53.6]} 16... Ng6 {[%clk
0:02:41.1]} 17. Nxh6 {[%clk 0:01:46.5]} 17... gxh6 {[%clk 0:02:31]} 18. f5
{[%clk 0:01:46.7]} 18... Nge5 {[%clk 0:02:31.5]} 19. Bxh6 {[%clk 0:01:45.6]}
19... Rf7 {[%clk 0:02:32]} 20. Bxf7 {[%clk 0:01:26.3]} 20... Nxf7 {[%clk
0:02:32.9]} 21. Bf4+ {[%clk 0:01:22]} 21... Kg7 {[%clk 0:02:33.1]} 22. Bxc7
{[%clk 0:01:22.4]} 22... d6 {[%clk 0:01:48.4]} 23. Rd1 {[%clk 0:01:20.6]} 23...
Nce5 {[%clk 0:01:48.9]} 24. Bxd6 {[%clk 0:01:05.8]} 24... Nxd6 {[%clk
0:01:49.8]} 25. Rxd6 {[%clk 0:01:05.1]} 25... Bd7 {[%clk 0:01:50.7]} 26. Rh3
{[%clk 0:00:48.7]} 26... Rc8 {[%clk 0:01:50.7]} 27. Rg3+ {[%clk 0:00:48.6]}
27... Kf7 {[%clk 0:01:50.5]} 28. Rh3 {[%clk 0:00:49.1]} 28... Ke7 {[%clk
0:01:48.5]} 29. Rd4 {[%clk 0:00:47.2]} 29... Be8 {[%clk 0:01:48.7]} 30. a4
{[%clk 0:00:22.6]} 30... a5 {[%clk 0:01:43.2]} 31. Re3 {[%clk 0:00:19]} 31...
Rc4 {[%clk 0:01:28.2]} 32. g4 {[%clk 0:00:12.5]} 32... Bxa4 {[%clk 0:01:27.5]}
33. h3 {[%clk 0:00:03]} 33... Bxc2 {[%clk 0:01:26.6]} 34. Kf2 {[%clk 0:00:03]}
34... a4 {[%clk 0:01:26.8]} 35. Rxc4 {[%clk 0:00:02.3]} 35... Nxc4 {[%clk
0:01:27.1]} 36. Re1 {[%clk 0:00:03]} 36... a3 {[%clk 0:01:26.7]} 37. Ra1 {[%clk
0:00:03.6]} 37... Bxe4 {[%clk 0:01:16.5]} 38. Kg3 {[%clk 0:00:03]} 38... Bc2
{[%clk 0:01:10.6]} 39. Kf4 {[%clk 0:00:03.1]} 39... Bb3 {[%clk 0:01:10.9]} 40.
h4 {[%clk 0:00:03.5]} 40... a2 {[%clk 0:01:11.4]} 41. g5 {[%clk 0:00:04.1]}
41... fxg5+ {[%clk 0:01:11.4]} 42. hxg5 {[%clk 0:00:03.6]} 42... Na3 {[%clk
0:01:11.7]} 43. g6 {[%clk 0:00:01.8]} 43... Nc2 {[%clk 0:01:11.3]} 44. Kg5
{[%clk 0:00:01]} 44... Nxa1 {[%clk 0:01:11.5]} 45. f6+ {[%clk 0:00:01.5]} 45...
Kf8 {[%clk 0:01:12.1]} 0-1